[Event "Early-Titled-Tuesday-Blitz-March-19-2024"]
[Site "Chess.com"]
[Date "2024.03.19"]
[Round "3"]
[White "ninguno46"]
[Black "RamyresCoelho"]
[Result "1-0"]
[WhiteElo "2545"]
[BlackElo "2292"]
[TimeControl "180+1"]
[EndTime "8:24:38 PDT"]
[Termination "ninguno46 won by resignation"]

1. e4 {[%clk 0:03:00.9]} 1... c5 {[%clk 0:02:59.5]} 2. Nc3 {[%clk 0:03:00]} 2...
e6 {[%clk 0:02:55.7]} 3. Nge2 {[%clk 0:02:59.6]} 3... Nc6 {[%clk 0:02:55.4]} 4.
g3 {[%clk 0:03:00.1]} 4... d6 {[%clk 0:02:55.3]} 5. Bg2 {[%clk 0:03:00.6]} 5...
Nf6 {[%clk 0:02:55.8]} 6. O-O {[%clk 0:03:00.8]} 6... Be7 {[%clk 0:02:56.3]} 7.
d4 {[%clk 0:03:00.6]} 7... cxd4 {[%clk 0:02:56.2]} 8. Nxd4 {[%clk 0:03:01.5]}
8... Bd7 {[%clk 0:02:56.8]} 9. Nb3 {[%clk 0:03:00.4]} 9... a6 {[%clk 0:02:55.5]}
10. a4 {[%clk 0:03:00.4]} 10... O-O {[%clk 0:02:55.1]} 11. a5 {[%clk 0:03:00.5]}
11... Rc8 {[%clk 0:02:49.2]} 12. Be3 {[%clk 0:02:59.6]} 12... Ne5 {[%clk
0:02:25.2]} 13. Bb6 {[%clk 0:02:58.1]} 13... Qe8 {[%clk 0:02:25]} 14. Nd2 {[%clk
0:02:56.8]} 14... Nc4 {[%clk 0:02:23.9]} 15. Nxc4 {[%clk 0:02:55.9]} 15... Rxc4
{[%clk 0:02:24.8]} 16. Qd3 {[%clk 0:02:55.7]} 16... Qc8 {[%clk 0:02:01]} 17.
Rfd1 {[%clk 0:02:32.7]} 17... Be8 {[%clk 0:01:53.4]} 18. Bd4 {[%clk 0:02:23.9]}
18... e5 {[%clk 0:01:43]} 19. Be3 {[%clk 0:02:22.7]} 19... Bc6 {[%clk
0:01:37.1]} 20. Qxc4 {[%clk 0:02:21.5]} 1-0

[Event "Early-Titled-Tuesday-Blitz-March-19-2024"]
[Site "Chess.com"]
[Date "2024.03.19"]
[Round "3"]
[White "secrethawk1"]
[Black "geminithegreat"]
[Result "1-0"]
[WhiteElo "2441"]
[BlackElo "2224"]
[TimeControl "180+1"]
[EndTime "8:24:39 PDT"]
[Termination "secrethawk1 won by resignation"]

1. e4 {[%clk 0:02:53.7]} 1... e5 {[%clk 0:02:59.5]} 2. Nf3 {[%clk 0:02:53.4]}
2... Nc6 {[%clk 0:03:00.2]} 3. Bb5 {[%clk 0:02:53.1]} 3... a6 {[%clk 0:03:00.1]}
4. Ba4 {[%clk 0:02:53.4]} 4... Nf6 {[%clk 0:03:00.8]} 5. O-O {[%clk 0:02:52.9]}
5... Be7 {[%clk 0:03:00.9]} 6. Re1 {[%clk 0:02:53]} 6... b5 {[%clk 0:03:00.1]}
7. Bb3 {[%clk 0:02:52.9]} 7... d6 {[%clk 0:03:01]} 8. c3 {[%clk 0:02:46.2]} 8...
O-O {[%clk 0:03:01.2]} 9. h3 {[%clk 0:02:44.4]} 9... Na5 {[%clk 0:03:00.9]} 10.
Bc2 {[%clk 0:02:44.7]} 10... c5 {[%clk 0:03:01.5]} 11. d4 {[%clk 0:02:45.6]}
11... Nd7 {[%clk 0:03:00.8]} 12. Nbd2 {[%clk 0:02:40.9]} 12... exd4 {[%clk
0:03:00.3]} 13. cxd4 {[%clk 0:02:40.5]} 13... Nc6 {[%clk 0:03:01]} 14. d5 {[%clk
0:02:39.5]} 14... Nce5 {[%clk 0:03:01.1]} 15. Nxe5 {[%clk 0:02:39.5]} 15... Nxe5
{[%clk 0:03:02]} 16. Nf3 {[%clk 0:02:37.8]} 16... Nxf3+ {[%clk 0:02:42.5]} 17.
Qxf3 {[%clk 0:02:38.7]} 17... Bf6 {[%clk 0:02:42.6]} 18. Rb1 {[%clk 0:02:34.8]}
18... a5 {[%clk 0:02:30.5]} 19. b3 {[%clk 0:02:28.2]} 19... Bd7 {[%clk
0:02:07.1]} 20. Qd3 {[%clk 0:02:16.3]} 20... b4 {[%clk 0:02:02]} 21. e5 {[%clk
0:02:13.7]} 1-0

[Event "Early-Titled-Tuesday-Blitz-March-19-2024"]
[Site "Chess.com"]
[Date "2024.03.19"]
[Round "3"]
[White "the_chess_child"]
[Black "SmirnovAlexandrA"]
[Result "1-0"]
[WhiteElo "2869"]
[BlackElo "2608"]
[TimeControl "180+1"]
[EndTime "8:25:08 PDT"]
[Termination "the_chess_child won by resignation"]

1. e4 {[%clk 0:03:00.9]} 1... d5 {[%clk 0:02:52.5]} 2. exd5 {[%clk 0:03:00.8]}
2... Qxd5 {[%clk 0:02:53.4]} 3. Nc3 {[%clk 0:03:00.7]} 3... Qd6 {[%clk
0:02:53.7]} 4. Nf3 {[%clk 0:02:59.3]} 4... Nf6 {[%clk 0:02:53.9]} 5. d4 {[%clk
0:02:58]} 5... a6 {[%clk 0:02:54]} 6. Bc4 {[%clk 0:02:57.6]} 6... b5 {[%clk
0:02:54.2]} 7. Bb3 {[%clk 0:02:57]} 7... Bb7 {[%clk 0:02:54.9]} 8. Ne5 {[%clk
0:02:54.8]} 8... Nbd7 {[%clk 0:02:50.3]} 9. Nxf7 {[%clk 0:02:51]} 9... Qc6
{[%clk 0:02:15.6]} 10. d5 {[%clk 0:02:49.2]} 10... Qb6 {[%clk 0:02:15.8]} 11.
Nxh8 {[%clk 0:02:46.5]} 11... g6 {[%clk 0:02:15.1]} 12. Be3 {[%clk 0:02:44.5]}
12... c5 {[%clk 0:02:12.8]} 13. dxc6 {[%clk 0:02:43.3]} 13... Qxc6 {[%clk
0:02:12.5]} 14. f3 {[%clk 0:02:40]} 14... e6 {[%clk 0:02:08.1]} 15. Ne2 {[%clk
0:02:11.7]} 15... Bg7 {[%clk 0:01:57.2]} 16. Nd4 {[%clk 0:02:11.4]} 16... Qd6
{[%clk 0:01:39.5]} 17. Nxe6 {[%clk 0:01:57.6]} 17... Qxd1+ {[%clk 0:01:33.7]}
18. Rxd1 {[%clk 0:01:58.5]} 18... Bxh8 {[%clk 0:01:34.3]} 19. Nc7+ {[%clk
0:01:58.6]} 19... Ke7 {[%clk 0:01:33.8]} 20. Nxa8 {[%clk 0:01:59.1]} 20... Bxa8
{[%clk 0:01:34.7]} 21. O-O {[%clk 0:01:59.3]} 21... Ne5 {[%clk 0:01:30.9]} 22.
Bd4 {[%clk 0:01:59.1]} 1-0

[Event "Early-Titled-Tuesday-Blitz-March-19-2024"]
[Site "Chess.com"]
[Date "2024.03.19"]
[Round "3"]
[White "MikeWizard"]
[Black "Chessdude1987"]
[Result "0-1"]
[WhiteElo "2118"]
[BlackElo "2388"]
[TimeControl "180+1"]
[EndTime "8:25:25 PDT"]
[Termination "Chessdude1987 won by checkmate"]

1. d4 {[%clk 0:03:00.9]} 1... e6 {[%clk 0:02:58.9]} 2. c4 {[%clk 0:02:59.2]}
2... f5 {[%clk 0:02:58.7]} 3. g3 {[%clk 0:02:59.1]} 3... Nf6 {[%clk 0:02:58.3]}
4. Bg2 {[%clk 0:02:59.2]} 4... Bb4+ {[%clk 0:02:56.9]} 5. Bd2 {[%clk 0:02:57.8]}
5... Qe7 {[%clk 0:02:57]} 6. a3 {[%clk 0:02:51.5]} 6... Bxd2+ {[%clk 0:02:56.6]}
7. Nxd2 {[%clk 0:02:51.6]} 7... d6 {[%clk 0:02:56.9]} 8. Nh3 {[%clk 0:02:48.7]}
8... e5 {[%clk 0:02:56.9]} 9. dxe5 {[%clk 0:02:41.6]} 9... dxe5 {[%clk
0:02:57.8]} 10. O-O {[%clk 0:02:41.2]} 10... O-O {[%clk 0:02:51.5]} 11. e4
{[%clk 0:02:41]} 11... f4 {[%clk 0:02:30.8]} 12. gxf4 {[%clk 0:02:37.6]} 12...
Bxh3 {[%clk 0:02:28.1]} 13. Bxh3 {[%clk 0:02:37.1]} 13... exf4 {[%clk
0:02:28.4]} 14. Re1 {[%clk 0:02:31.6]} 14... Nc6 {[%clk 0:02:16.5]} 15. Nf3
{[%clk 0:02:02.9]} 15... Ne5 {[%clk 0:02:04.1]} 16. Nxe5 {[%clk 0:01:49.4]}
16... Qxe5 {[%clk 0:02:05]} 17. Qb3 {[%clk 0:01:45.8]} 17... Nxe4 {[%clk
0:01:37]} 18. Bg2 {[%clk 0:01:37.3]} 18... f3 {[%clk 0:01:31.7]} 19. Bxf3 {[%clk
0:01:35.1]} 19... Qg5+ {[%clk 0:01:31.5]} 20. Kh1 {[%clk 0:01:30.8]} 20... Nxf2#
{[%clk 0:01:30.8]} 0-1

[Event "Early-Titled-Tuesday-Blitz-March-19-2024"]
[Site "Chess.com"]
[Date "2024.03.19"]
[Round "3"]
[White "JERO-8914"]
[Black "bescmelasti"]
[Result "0-1"]
[WhiteElo "2453"]
[BlackElo "2661"]
[TimeControl "180+1"]
[EndTime "8:25:27 PDT"]
[Termination "bescmelasti won by resignation"]

1. c4 {[%clk 0:02:59.8]} 1... e5 {[%clk 0:02:59.9]} 2. Nc3 {[%clk 0:02:59.6]}
2... Nf6 {[%clk 0:03:00.4]} 3. Nf3 {[%clk 0:02:59.9]} 3... Nc6 {[%clk
0:03:00.2]} 4. e4 {[%clk 0:03:00.3]} 4... Bb4 {[%clk 0:02:59]} 5. d3 {[%clk
0:03:00.1]} 5... d6 {[%clk 0:02:58.5]} 6. a3 {[%clk 0:03:00.1]} 6... Bxc3+
{[%clk 0:02:58.8]} 7. bxc3 {[%clk 0:02:59.6]} 7... Nd7 {[%clk 0:02:54.9]} 8. g3
{[%clk 0:02:55.8]} 8... Nc5 {[%clk 0:02:41.6]} 9. Bg2 {[%clk 0:02:47.9]} 9... f5
{[%clk 0:02:41.7]} 10. Ng5 {[%clk 0:02:27.9]} 10... O-O {[%clk 0:02:36.7]} 11.
exf5 {[%clk 0:02:01.3]} 11... Bxf5 {[%clk 0:02:35.8]} 12. Ne4 {[%clk 0:01:57.1]}
12... Nxe4 {[%clk 0:02:20.6]} 13. dxe4 {[%clk 0:01:50.6]} 13... Be6 {[%clk
0:02:21]} 14. Qe2 {[%clk 0:01:50.2]} 14... Na5 {[%clk 0:02:18.2]} 15. c5 {[%clk
0:01:50.1]} 15... Bc4 {[%clk 0:02:10.6]} 16. Qe3 {[%clk 0:01:41.4]} 16... Nb3
{[%clk 0:02:10.4]} 17. Rb1 {[%clk 0:01:40.1]} 17... Nxc5 {[%clk 0:02:10.2]} 18.
Bf1 {[%clk 0:01:28.4]} 18... Bxf1 {[%clk 0:02:00.7]} 19. Kxf1 {[%clk 0:01:29.3]}
19... Qd7 {[%clk 0:01:49.5]} 20. Kg2 {[%clk 0:01:26.6]} 20... Qa4 {[%clk
0:01:50]} 21. f3 {[%clk 0:01:24.6]} 21... Qc2+ {[%clk 0:01:49.3]} 0-1

[Event "Early-Titled-Tuesday-Blitz-March-19-2024"]
[Site "Chess.com"]
[Date "2024.03.19"]
[Round "3"]
[White "BardArtem"]
[Black "MagnusCarlsen"]
[Result "0-1"]
[WhiteElo "2830"]
[BlackElo "3267"]
[TimeControl "180+1"]
[EndTime "8:25:34 PDT"]
[Termination "MagnusCarlsen won by resignation"]

1. e4 {[%clk 0:02:58.3]} 1... c5 {[%clk 0:02:59.2]} 2. c3 {[%clk 0:02:48.8]}
2... Qa5 {[%clk 0:02:57.3]} 3. Nf3 {[%clk 0:02:47.7]} 3... Nc6 {[%clk
0:02:56.7]} 4. Be2 {[%clk 0:02:29.6]} 4... Nf6 {[%clk 0:02:50.9]} 5. e5 {[%clk
0:02:26.3]} 5... Ng4 {[%clk 0:02:50.3]} 6. O-O {[%clk 0:02:26.8]} 6... Ngxe5
{[%clk 0:02:48.5]} 7. Nxe5 {[%clk 0:02:27.7]} 7... Nxe5 {[%clk 0:02:48.8]} 8. d4
{[%clk 0:02:27.7]} 8... Ng6 {[%clk 0:02:44.3]} 9. Re1 {[%clk 0:02:23.9]} 9... e6
{[%clk 0:02:38.5]} 10. dxc5 {[%clk 0:02:19.8]} 10... Qxc5 {[%clk 0:02:37.7]} 11.
Be3 {[%clk 0:02:19.7]} 11... Qc7 {[%clk 0:02:37.4]} 12. c4 {[%clk 0:02:14.8]}
12... Be7 {[%clk 0:02:28.7]} 13. Nc3 {[%clk 0:02:14.4]} 13... a6 {[%clk
0:02:26]} 14. Rc1 {[%clk 0:01:46.7]} 14... d6 {[%clk 0:02:23]} 15. g3 {[%clk
0:01:40.6]} 15... O-O {[%clk 0:02:22.5]} 16. h4 {[%clk 0:01:40.5]} 16... Ne5
{[%clk 0:02:21.7]} 17. b3 {[%clk 0:01:34.6]} 17... b6 {[%clk 0:02:18.4]} 18. Na4
{[%clk 0:01:28.4]} 18... Bb7 {[%clk 0:02:10.7]} 19. Nxb6 {[%clk 0:01:20.8]}
19... Qc6 {[%clk 0:02:05.4]} 20. f3 {[%clk 0:01:17.5]} 20... Rae8 {[%clk
0:02:01.3]} 21. Bf4 {[%clk 0:01:08]} 21... Qxb6+ {[%clk 0:01:53.8]} 0-1

[Event "Early-Titled-Tuesday-Blitz-March-19-2024"]
[Site "Chess.com"]
[Date "2024.03.19"]
[Round "3"]
[White "stollenmonster"]
[Black "LeRoidesChampions"]
[Result "1-0"]
[WhiteElo "2920"]
[BlackElo "2668"]
[TimeControl "180+1"]
[EndTime "8:26:02 PDT"]
[Termination "stollenmonster won by resignation"]

1. e4 {[%clk 0:03:00.9]} 1... e6 {[%clk 0:02:53.6]} 2. Nc3 {[%clk 0:03:00.1]}
2... d5 {[%clk 0:02:54.5]} 3. g3 {[%clk 0:03:00.5]} 3... Nf6 {[%clk 0:02:49.9]}
4. Bg2 {[%clk 0:03:00.9]} 4... c6 {[%clk 0:02:49.8]} 5. Nge2 {[%clk 0:02:58.3]}
5... Bc5 {[%clk 0:02:47.8]} 6. d4 {[%clk 0:02:57.3]} 6... Be7 {[%clk 0:02:46.4]}
7. O-O {[%clk 0:02:57.7]} 7... dxe4 {[%clk 0:02:46.4]} 8. Nxe4 {[%clk
0:02:57.5]} 8... Nbd7 {[%clk 0:02:47.1]} 9. c4 {[%clk 0:02:57.1]} 9... O-O
{[%clk 0:02:46]} 10. N2c3 {[%clk 0:02:56.7]} 10... Nxe4 {[%clk 0:02:45.3]} 11.
Nxe4 {[%clk 0:02:57.2]} 11... Nf6 {[%clk 0:02:45.9]} 12. Be3 {[%clk 0:02:57.1]}
12... Qa5 {[%clk 0:02:35.2]} 13. h3 {[%clk 0:02:52.3]} 13... Rd8 {[%clk
0:02:33.7]} 14. Qc2 {[%clk 0:02:51.8]} 14... e5 {[%clk 0:02:25.2]} 15. Nxf6+
{[%clk 0:02:49.5]} 15... Bxf6 {[%clk 0:02:24]} 16. d5 {[%clk 0:02:50.2]} 16...
cxd5 {[%clk 0:02:18.2]} 17. cxd5 {[%clk 0:02:48.5]} 17... Rxd5 {[%clk
0:02:09.8]} 18. b4 {[%clk 0:02:40.2]} 18... Qd8 {[%clk 0:02:07.7]} 19. Rfd1
{[%clk 0:02:27.7]} 19... Bf5 {[%clk 0:01:46.2]} 20. Rxd5 {[%clk 0:02:15.8]}
20... Bxc2 {[%clk 0:01:45.2]} 21. Rxd8+ {[%clk 0:02:16.3]} 21... Rxd8 {[%clk
0:01:44.9]} 22. Bxb7 {[%clk 0:02:14.6]} 22... Rb8 {[%clk 0:01:43.8]} 23. Rc1
{[%clk 0:02:06.1]} 23... Rxb7 {[%clk 0:01:42]} 24. Rxc2 {[%clk 0:02:06.2]} 24...
h6 {[%clk 0:01:41.9]} 25. a3 {[%clk 0:02:04.1]} 25... Be7 {[%clk 0:01:39.5]} 26.
Rc8+ {[%clk 0:02:02]} 26... Kh7 {[%clk 0:01:39.4]} 27. Ra8 {[%clk 0:02:00.7]}
27... Rd7 {[%clk 0:01:18.8]} 28. Rxa7 {[%clk 0:01:54.6]} 28... Rd1+ {[%clk
0:01:19]} 29. Kg2 {[%clk 0:01:54.3]} 29... Bd6 {[%clk 0:01:14.2]} 30. Rd7 {[%clk
0:01:52.8]} 30... f5 {[%clk 0:01:13]} 31. Bc5 {[%clk 0:01:51.8]} 1-0

[Event "Early-Titled-Tuesday-Blitz-March-19-2024"]
[Site "Chess.com"]
[Date "2024.03.19"]
[Round "3"]
[White "viktorgen2021"]
[Black "BilicVladimir"]
[Result "0-1"]
[WhiteElo "2480"]
[BlackElo "2708"]
[TimeControl "180+1"]
[EndTime "8:26:20 PDT"]
[Termination "BilicVladimir won by resignation"]

1. d4 {[%clk 0:02:39.2]} 1... c6 {[%clk 0:03:00.1]} 2. c4 {[%clk 0:02:35.7]}
2... d5 {[%clk 0:03:01]} 3. Nf3 {[%clk 0:02:35.4]} 3... Nf6 {[%clk 0:03:01]} 4.
Nc3 {[%clk 0:02:32.8]} 4... a6 {[%clk 0:03:00.7]} 5. c5 {[%clk 0:02:30.7]} 5...
Nbd7 {[%clk 0:03:00.2]} 6. e3 {[%clk 0:02:30.5]} 6... g6 {[%clk 0:03:00.4]} 7.
b4 {[%clk 0:02:29.7]} 7... Bg7 {[%clk 0:03:00.8]} 8. Bb2 {[%clk 0:02:29.7]} 8...
O-O {[%clk 0:03:00.8]} 9. Be2 {[%clk 0:02:30.1]} 9... Ne8 {[%clk 0:02:59.4]} 10.
O-O {[%clk 0:02:29.7]} 10... Nc7 {[%clk 0:02:59.7]} 11. a4 {[%clk 0:02:30.3]}
11... Re8 {[%clk 0:02:59.7]} 12. e4 {[%clk 0:02:21]} 12... dxe4 {[%clk
0:02:59.1]} 13. Nxe4 {[%clk 0:02:21.8]} 13... Nd5 {[%clk 0:02:56.2]} 14. b5
{[%clk 0:02:21.2]} 14... axb5 {[%clk 0:02:55.9]} 15. axb5 {[%clk 0:02:22.1]}
15... Rxa1 {[%clk 0:02:55]} 16. Qxa1 {[%clk 0:02:20.3]} 16... N7f6 {[%clk
0:02:55]} 17. Nxf6+ {[%clk 0:02:13.2]} 17... Nxf6 {[%clk 0:02:54.2]} 18. Bc4
{[%clk 0:02:10.7]} 18... Nd5 {[%clk 0:02:52.1]} 19. bxc6 {[%clk 0:02:10]} 19...
bxc6 {[%clk 0:02:51.4]} 20. Ne5 {[%clk 0:02:09.7]} 20... Qc7 {[%clk 0:02:37.8]}
21. Qa4 {[%clk 0:02:01.9]} 21... Bxe5 {[%clk 0:02:34.5]} 22. dxe5 {[%clk
0:02:00.6]} 22... Be6 {[%clk 0:02:34.2]} 23. Ra1 {[%clk 0:01:55.5]} 23... Rb8
{[%clk 0:02:33.1]} 24. Bd4 {[%clk 0:01:54.5]} 24... Rb4 {[%clk 0:02:29]} 25.
Qa8+ {[%clk 0:01:12.7]} 25... Kg7 {[%clk 0:02:27.5]} 26. Ra7 {[%clk 0:00:56.9]}
26... Rxc4 {[%clk 0:02:12.3]} 27. h3 {[%clk 0:00:56.5]} 27... Qc8 {[%clk
0:02:02.3]} 0-1

[Event "Early-Titled-Tuesday-Blitz-March-19-2024"]
[Site "Chess.com"]
[Date "2024.03.19"]
[Round "3"]
[White "wonderfultime"]
[Black "GMAkobianSTL"]
[Result "1-0"]
[WhiteElo "3081"]
[BlackElo "2812"]
[TimeControl "180+1"]
[EndTime "8:26:23 PDT"]
[Termination "wonderfultime won by resignation"]

1. d4 {[%clk 0:02:53.7]} 1... d5 {[%clk 0:02:58.4]} 2. Nf3 {[%clk 0:02:51.8]}
2... Nf6 {[%clk 0:02:57.8]} 3. Bf4 {[%clk 0:02:51.7]} 3... c6 {[%clk 0:02:57]}
4. e3 {[%clk 0:02:51.8]} 4... Bf5 {[%clk 0:02:56.4]} 5. c4 {[%clk 0:02:52.3]}
5... e6 {[%clk 0:02:55.8]} 6. Nc3 {[%clk 0:02:52.4]} 6... Nbd7 {[%clk 0:02:55]}
7. Qb3 {[%clk 0:02:52.7]} 7... Qb6 {[%clk 0:02:53.8]} 8. c5 {[%clk 0:02:53]}
8... Qxb3 {[%clk 0:02:53.6]} 9. axb3 {[%clk 0:02:53.9]} 9... a6 {[%clk
0:02:53.7]} 10. b4 {[%clk 0:02:54.6]} 10... Rc8 {[%clk 0:02:53.7]} 11. h3 {[%clk
0:02:48.5]} 11... h6 {[%clk 0:02:52.5]} 12. Be2 {[%clk 0:02:48.6]} 12... Be7
{[%clk 0:02:47.2]} 13. Nd2 {[%clk 0:02:48.1]} 13... Bd8 {[%clk 0:02:45.8]} 14.
Nb3 {[%clk 0:02:46.7]} 14... Bc7 {[%clk 0:02:44]} 15. Bxc7 {[%clk 0:02:45.8]}
15... Rxc7 {[%clk 0:02:44.1]} 16. b5 {[%clk 0:02:42]} 16... Ke7 {[%clk 0:02:10]}
17. b6 {[%clk 0:02:38.8]} 17... Rcc8 {[%clk 0:02:08.6]} 18. Na5 {[%clk
0:02:39.5]} 18... Rb8 {[%clk 0:02:08.3]} 19. f3 {[%clk 0:02:07.5]} 19... Rhc8
{[%clk 0:01:58.2]} 20. b4 {[%clk 0:02:07.7]} 20... e5 {[%clk 0:01:56.6]} 21. Kd2
{[%clk 0:02:07.9]} 21... exd4 {[%clk 0:01:51.3]} 22. exd4 {[%clk 0:02:08.8]}
22... Nf8 {[%clk 0:01:51.2]} 23. Nxb7 {[%clk 0:02:09.5]} 23... Rxb7 {[%clk
0:01:50.5]} 24. Bxa6 {[%clk 0:02:09.7]} 24... Rbb8 {[%clk 0:01:44.9]} 25. Bxc8
{[%clk 0:02:07.5]} 25... Bxc8 {[%clk 0:01:44.6]} 26. Ra7+ {[%clk 0:02:07.1]}
26... Ke8 {[%clk 0:01:44.5]} 27. b5 {[%clk 0:02:05.2]} 27... Bd7 {[%clk
0:01:38.2]} 28. Rha1 {[%clk 0:01:35]} 28... Kd8 {[%clk 0:01:34.2]} 29. Ra8
{[%clk 0:01:11.8]} 29... Kc8 {[%clk 0:01:31.8]} 30. R1a7 {[%clk 0:01:06.1]}
30... Ne6 {[%clk 0:01:31.4]} 31. b7+ {[%clk 0:01:05.1]} 31... Kc7 {[%clk
0:01:30.5]} 32. b6+ {[%clk 0:01:05.5]} 1-0

[Event "Early-Titled-Tuesday-Blitz-March-19-2024"]
[Site "Chess.com"]
[Date "2024.03.19"]
[Round "3"]
[White "UnTucopalaTimba"]
[Black "InitiatingASC"]
[Result "0-1"]
[WhiteElo "1992"]
[BlackElo "2350"]
[TimeControl "180+1"]
[EndTime "8:26:24 PDT"]
[Termination "InitiatingASC won by resignation"]

1. e4 {[%clk 0:02:59]} 1... c5 {[%clk 0:03:00]} 2. Nf3 {[%clk 0:02:58.8]} 2...
Nc6 {[%clk 0:02:59.8]} 3. d4 {[%clk 0:02:58.6]} 3... cxd4 {[%clk 0:03:00.3]} 4.
Nxd4 {[%clk 0:02:57.8]} 4... Nf6 {[%clk 0:03:00.7]} 5. Nc3 {[%clk 0:02:56.6]}
5... e5 {[%clk 0:03:01.3]} 6. Ndb5 {[%clk 0:02:54.3]} 6... h6 {[%clk 0:03:01.6]}
7. Nd5 {[%clk 0:02:34.7]} 7... Nxd5 {[%clk 0:03:01.4]} 8. exd5 {[%clk
0:02:28.3]} 8... a6 {[%clk 0:03:02.3]} 9. Nc3 {[%clk 0:02:26]} 9... Nd4 {[%clk
0:02:58.3]} 10. a3 {[%clk 0:02:18.5]} 10... d6 {[%clk 0:02:52.2]} 11. Be3 {[%clk
0:02:16]} 11... Nf5 {[%clk 0:02:52]} 12. Qd3 {[%clk 0:02:10.5]} 12... Nxe3
{[%clk 0:02:51.7]} 13. Qxe3 {[%clk 0:02:10.1]} 13... Be7 {[%clk 0:02:50.2]} 14.
Bd3 {[%clk 0:02:09.2]} 14... O-O {[%clk 0:02:48.8]} 15. O-O {[%clk 0:02:07.1]}
15... f5 {[%clk 0:02:47.5]} 16. f4 {[%clk 0:01:59.6]} 16... e4 {[%clk 0:02:45]}
17. Be2 {[%clk 0:01:58.6]} 17... Bd7 {[%clk 0:02:39.2]} 18. Rad1 {[%clk
0:01:54.4]} 18... Rc8 {[%clk 0:02:38]} 19. Qg3 {[%clk 0:01:38.2]} 19... Qb6+
{[%clk 0:02:32.8]} 20. Kh1 {[%clk 0:01:37.1]} 20... Qxb2 {[%clk 0:02:32.5]} 21.
Nb1 {[%clk 0:01:23.3]} 21... Rxc2 {[%clk 0:02:22.9]} 22. Bh5 {[%clk 0:01:17.8]}
22... Bf6 {[%clk 0:02:15.8]} 23. h3 {[%clk 0:01:11.6]} 23... Rfc8 {[%clk
0:02:12.6]} 24. Qe3 {[%clk 0:01:09.6]} 24... Rxg2 {[%clk 0:02:05.5]} 25. Rd2
{[%clk 0:01:06.2]} 25... Rxd2 {[%clk 0:02:02]} 26. Nxd2 {[%clk 0:01:06]} 26...
Rc2 {[%clk 0:01:57.2]} 27. Rd1 {[%clk 0:00:56]} 27... Qc3 {[%clk 0:01:42.4]} 0-1

[Event "Early-Titled-Tuesday-Blitz-March-19-2024"]
[Site "Chess.com"]
[Date "2024.03.19"]
[Round "3"]
[White "trriinu"]
[Black "Josetricks"]
[Result "0-1"]
[WhiteElo "2292"]
[BlackElo "2543"]
[TimeControl "180+1"]
[EndTime "8:26:25 PDT"]
[Termination "Josetricks won by resignation"]

1. e4 {[%clk 0:03:00.9]} 1... g6 {[%clk 0:02:59.7]} 2. d4 {[%clk 0:02:58.4]}
2... Bg7 {[%clk 0:03:00.6]} 3. Nc3 {[%clk 0:02:58.4]} 3... c6 {[%clk 0:03:00.1]}
4. Nf3 {[%clk 0:02:57.9]} 4... d5 {[%clk 0:03:00.3]} 5. e5 {[%clk 0:02:58.2]}
5... f6 {[%clk 0:02:59.9]} 6. Be2 {[%clk 0:02:58.9]} 6... Bg4 {[%clk 0:02:59.8]}
7. Bf4 {[%clk 0:02:35.7]} 7... Nd7 {[%clk 0:02:55.1]} 8. exf6 {[%clk 0:01:54.7]}
8... Ngxf6 {[%clk 0:02:50.9]} 9. O-O {[%clk 0:01:54.7]} 9... O-O {[%clk
0:02:50]} 10. Qd2 {[%clk 0:01:55.3]} 10... Ne4 {[%clk 0:02:43.3]} 11. Nxe4
{[%clk 0:01:40.4]} 11... dxe4 {[%clk 0:02:44.2]} 12. Ng5 {[%clk 0:01:39.5]}
12... Bxe2 {[%clk 0:02:43.9]} 13. Qxe2 {[%clk 0:01:38.8]} 13... Rxf4 {[%clk
0:02:41.2]} 14. Ne6 {[%clk 0:01:37.1]} 14... Qb8 {[%clk 0:02:41.4]} 15. Nxf4
{[%clk 0:01:05.8]} 15... Qxf4 {[%clk 0:02:42.3]} 16. c3 {[%clk 0:01:06.4]} 16...
e5 {[%clk 0:02:34.4]} 17. f3 {[%clk 0:00:50.1]} 17... exd4 {[%clk 0:02:26.5]}
18. fxe4 {[%clk 0:00:48.8]} 18... Qe3+ {[%clk 0:02:17.6]} 19. Qxe3 {[%clk
0:00:42.8]} 19... dxe3 {[%clk 0:02:18.5]} 20. Rfe1 {[%clk 0:00:40.1]} 20... Bh6
{[%clk 0:02:17.5]} 21. Rad1 {[%clk 0:00:40.6]} 21... Nc5 {[%clk 0:02:14.6]} 22.
e5 {[%clk 0:00:34.2]} 22... Re8 {[%clk 0:02:13.3]} 23. b4 {[%clk 0:00:29.1]}
23... Ne4 {[%clk 0:02:11.6]} 24. Rd7 {[%clk 0:00:26.1]} 24... Nxc3 {[%clk
0:02:11.6]} 25. Rxb7 {[%clk 0:00:24.7]} 25... e2 {[%clk 0:02:11.1]} 26. Rxa7
{[%clk 0:00:19.2]} 26... Bd2 {[%clk 0:02:10.5]} 27. Ra1 {[%clk 0:00:17.8]} 0-1